Cogmind - Beta 17 @@@ ROGUE MODE // 2026.07.31 @ 14:45:41 Player: Suffixing Result: Destroyed by ND-H0U(R) with Subdweller Machine Gun Performance ------------- Evolutions (0) 0 Regions Visited (2) 400 Robots Destroyed (22) 110 Value Destroyed (558) 558 Prototype IDs (14) 280 Alien Tech Used (0) 0 Bonus (-56) -56 TOTAL SCORE: 1292 Bonus ------- Friendly Fire -56 Cogmind --------- Core Integrity 0/250 Matter 300/300 Energy 91/100 System Corruption 6% Temperature Cool (0) Movement Core (1400) Ox27 Location -10/Subcaves Parts ------- > --- POWER (1) -------- (None) > --- PROPULSION (2) --- (None) > --- UTILITY (2) ------ Huge Storage Unit > --- WEAPON (2) ------- Subdweller Laser > --- INVENTORY (25) --- Subdweller Monowheel Subdweller Monowheel Improved Heat Sink Large Storage Unit Subdweller Optics Subdweller Optics Hardened Light Armor Plating Hardened Light Armor Plating Hardened Light Armor Plating Gun Armor Self-contained Transmogrifier Grenade Launcher Multitool Peak State ------------ > --- POWER ------------ Ion Engine > --- PROPULSION ------- Light Treads Light Treads > --- UTILITY ---------- Huge Storage Unit Hardened Light Armor Plating > --- WEAPON ----------- EM Shotgun EM Shotgun > --- INVENTORY -------- Light Treads Wheel Improved Heat Sink Disposable Heat Sink Large Storage Unit Subdweller Optics Hardened Light Armor Plating Hardened Light Armor Plating Hardened Light Armor Plating Gun Armor Self-contained Transmogrifier EM Shotgun Grenade Launcher Multitool Scrap Shield Fragment [Rating: 14] Favorites ----------- Power Ion Engine Engine Ion Engine Propulsion Light Treads Treads Light Treads Leg Aluminum Leg Wheel Wheel Utility Hardened Light Armor Plating Storage Huge Storage Unit Protection Hardened Light Armor Plating Weapon EM Shotgun Energy Gun EM Shotgun Ballistic Gun Light Assault Rifle Launcher Grenade Launcher Build | -11 -10 -10 ------- Run | Yrd Mat Sub Slots Evolved . | . . . Power . | . . . Propulsion . | . . . Utility . | . . . Weapon . | . . . Parts Attached 19 | 2 11 6 Power 2 | . 2 . Engine 2 | . 2 . Core . | . . . Reactor . | . . . Propulsion 5 | 2 1 2 Treads 4 | 2 1 1 Leg . | . . . Wheel 1 | . . 1 Hover . | . . . Flight . | . . . Utility 5 | . 5 . Device . | . . . Storage 4 | . 4 . Processor . | . . . Hackware . | . . . Protection 1 | . 1 . Artifact . | . . . Weapon 7 | . 3 4 Energy Gun 6 | . 3 3 Energy Cannon . | . . . Ballistic Gun . | . . . Ballistic Cannon . | . . . Launcher 1 | . . 1 Special Weapon . | . . . Impact Weapon . | . . . Slashing Weapon . | . . . Piercing Weapon . | . . . Special Melee Weapon . | . . . Unidentified Prototypes . | . . . Corrupted Parts 1 | . . 1 System Corruption 1 | . . 1 Parts Lost 14 | . 4 10 Power 3 | . 2 1 Propulsion 5 | . 1 4 Utility 1 | . . 1 Weapon 5 | . 1 4 Highest Loss Streak 6 | . 1 6 To Critical Strikes . | . . . Average Backups 8 | 3 7 10 Power . | 1 . . Propulsion 2 | 2 2 1 Utility 4 | . 3 5 Weapon 1 | . 1 1 Tool/Special . | . . . Unused Backups 15 | . 3 12 Power . | . . . Propulsion 2 | . . 2 Utility 9 | . 1 8 Weapon 2 | . 2 . Tool/Special 2 | . . 2 Average Slot Usage (%) 93 | . 93 95 Engine 12 | . 11 13 Treads 26 | . 27 23 Storage 14 | . 14 14 Protection 11 | . 9 13 Energy Gun 25 | . 24 27 Ballistic Gun 2 | . 3 . Peak Build Rating 14 | 6 11 14 Average Rating 10 | 6 9 11 On Entrance 7 | 6 6 11 Avg Prop Armor Cover (%) . | . . . Naked Turns . | . . . Heaviest Build 98 | 13 96 98 Greatest Support 40 | 40 40 40 Greatest Overweight (x) 9 | . 2 9 Average Overweight (x) 1 | . . 2 Largest Inventory Capacity 25 | 8 25 25 Average Capacity 18 | 8 14 25 Most Carried 16 | 5 10 16 Average Carried 8 | 3 7 10 Final Capacity 25 | 8 25 25 Final Carried 13 | 2 9 13 Class Distribution -------------------- 100% | Mutant Dominant Class ---------------- Mutant | -10/Materials Mutant | -10/Subcaves Resources | -11 -10 -10 ----------- Run | Yrd Mat Sub Matter Collected 451 | 220 117 114 Remotely . | . . . Salvage Created 812 | . 571 241 Parts 46 | . 32 14 Haulers Intercepted 2 | . 2 . Recyclers Shooed . | . . . Parts Field Recycled . | . . . Retrieved Matter . | . . . Parts Self-Destructed 4 | . . 4 Prevented . | . . . Parts Restored . | . . . Kills | -11 -10 -10 ------- Run | Yrd Mat Sub Combat Hostiles Destroyed 18 | . 14 4 Guns 15 | . 13 2 AOE 1 | . 1 . Classes Destroyed 7 | . 5 2 Worker 1 | . 1 . Builder 1 | . 1 . Hauler 2 | . 2 . Swarmer 6 | . 6 . Grunt 8 | . 8 . Artisan 1 | . . 1 Subdweller 4 | . . 4 Best Kill Streak 4 | . 4 2 Combat Bots Only 3 | . 3 2 Max Kills in Single Turn 2 | . 2 1 Gunslinging 1 | . 1 . Exploded 1 | . 1 . Melee . | . . . Uniques/NPCs Destroyed . | . . . Combat | -11 -10 -10 -------- Run | Yrd Mat Sub Hostile Shots Fired 125 | . 69 56 Missed 27 | . 15 12 Hits 98 | . 54 44 Projectile 98 | . 54 44 Critical Strikes 6 | . 1 5 Damage Taken 1585 | . 638 947 Core 256 | . 35 221 Absorbed by Shields . | . . . Core Remaining (%) 100 | 100 . . Volleys Fired 65 | . 41 24 Largest 2 | . 2 2 Hottest 120 | . 90 120 Shots Fired 124 | . 80 44 Gun 121 | . 80 41 Cannon . | . . . Launcher 3 | . . 3 Special . | . . . Kinetic 26 | . 26 . Thermal 43 | . 26 17 Explosive 3 | . . 3 Electromagnetic 52 | . 28 24 Robot Hit Streak 31 | . 10 31 Robot Miss Streak 4 | . 4 2 Penetration Max . | . . . Secondary Targets 5 | . 4 1 Max Gunslinging Chain 1 | . 1 1 Shots Hit Robots 96 | . 58 38 Core Hits 44 | . 34 10 Critical Kills . | . . . Critical Parts Destroyed . | . . . Critical Strikes 2 | . 1 1 Burn 1 | . 1 . Destroy 1 | . . 1 Melee Attacks . | . . . Impact . | . . . Slashing . | . . . Piercing . | . . . Sneak Attacks . | . . . Combat Hostiles . | . . . Follow-up Attacks . | . . . Damage Inflicted 1565 | . 950 615 Guns 1316 | . 701 615 Cannons . | . . . Explosions 234 | . 234 . Melee . | . . . Ramming 15 | . 15 . Kinetic 153 | . 153 . Thermal 504 | . 216 288 Explosive 234 | . 234 . Electromagnetic 659 | . 332 327 Impact . | . . . Slashing . | . . . Piercing . | . . . Highest Corruption 6 | . 5 6 Average Corruption 4 | . 4 5 Corruption Purged . | . . . Corruption Blocked . | . . . Effects 29 | . 16 13 Message Errors 6 | . 2 4 Matter Fused 4 | . 3 1 Heat Flow Errors 4 | . 2 2 Energy Discharges 6 | . 3 3 Data Loss (minor) 6 | . 3 3 Misfires 1 | . 1 . Alerts 2 | . 2 . Overload Shots . | . . . Overflow Damage 46 | . 46 . Projectiles . | . . . Explosions 46 | . 46 . Melee . | . . . Knockbacks . | . . . Impact . | . . . Kinetic . | . . . Secondary . | . . . Self-Inflicted Damage 72 | . 54 18 Shots 3 | . 1 2 Rammed 2 | . 2 . Targets Rammed 2 | . 2 . Kicked . | . . . Crushed . | . . . Highest Temperature 286 | . 286 266 Average Temperature 81 | . 87 51 Received Heat Transfer 339 | . 237 102 Siege Activations . | . . . Martial Activations . | . . . Shielding Activations . | . . . Robots Disrupted . | . . . Combat Hostiles . | . . . Robots Corrupted 2 | . . 2 Combat Hostiles 2 | . . 2 Parts Fried 4 | . 2 2 Impact Corruptions . | . . . Robots Melted . | . . . Combat Hostiles . | . . . Parts Melted 1 | . 1 . Heat Transferred 1053 | . 703 350 Parts Sabotaged . | . . . Parts Stolen . | . . . Parts Stripped . | . . . Power Chain Reactions . | . . . Alert | -11 -10 -10 ------- Run | Yrd Mat Sub Maximum Alert Level . | . . . Low Security (%) 100 | 100 100 . Level 1 . | . . . Level 2 . | . . . Level 3 . | . . . Level 4 . | . . . Level 5 . | . . . High Security . | . . . Max Security . | . . . Peak Influence 165 | . 165 . Initial . | . . . Average 54 | . 55 . Influence Increases 446 | . 446 . Destroy 0b10 Robot/C 280 | . 280 . Destroy 0b10 Robot/NC 20 | . 20 . Destroy Leader 54 | . 54 . Successful Hack 14 | . 14 . Disable Machine 45 | . 45 . Destroy Structure 18 | . 18 . Lose Combat Pursuer 15 | . 15 . Influence Decreases 446 | . 446 . Time Decay 415 | . 415 . Lost Part 31 | . 31 . Squads Dispatched 1 | . 1 . Investigation . | . . . Extermination . | . . . Reinforcement 1 | . 1 . Assault . | . . . Garrison . | . . . Intercept . | . . . Searches Triggered . | . . . Construction Impeded . | . . . Haulers Reinforced . | . . . Active Scanning Responses . | . . . Cargo Convoy Interrupts . | . . . Stealth | -11 -10 -10 --------- Run | Yrd Mat Sub Distress Signals 1 | . 1 . Communications Jammed . | . . . Distress Signals . | . . . Times Spotted 32 | . 27 5 Peak Tracking Total 4 | . 4 2 Tactical Retreats 1 | . 1 . Traps | -11 -10 -10 ------- Run | Yrd Mat Sub Traps Triggered 3 | . 3 . Indirectly . | . . . Trap Hack Attempts . | . . . Triggered . | . . . Disarmed . | . . . Reprogrammed . | . . . Reused . | . . . Traps Extracted . | . . . Installed . | . . . Triggered . | . . . Machines | -11 -10 -10 ---------- Run | Yrd Mat Sub Machines Disabled 6 | . 3 3 Max in Single Turn 3 | . 2 3 Machines Repaired . | . . . Machines Dismantled . | . . . Machines Sabotaged . | . . . Overloaded Fab Kills . | . . . Hacking | -11 -10 -10 --------- Run | Yrd Mat Sub Machines Accessed 6 | . 5 1 Terminals 5 | . 5 . Fabricators . | . . . Repair Stations . | . . . Recycling Units . | . . . Scanalyzers . | . . . Garrison Access . | . . . Total Hacks 7 | . 6 1 Successful 5 | . 4 1 Failed 2 | . 2 . Catastrophic . | . . . Database Lockouts . | . . . Manual . | . . . Terminals 6 | . 6 . Fabricators . | . . . Repair Stations . | . . . Recycling Units . | . . . Scanalyzers . | . . . Garrison Access . | . . . Terminal Hacks 5 | . 4 1 Locate Traps 1 | . 1 . Hauler Manifests 1 | . 1 . Registered Components 1 | . 1 . Zone Layout 1 | . 1 . Proto ID Catalog 1 | . . 1 Fabricator Hacks . | . . . Repair Station Hacks . | . . . Recycling Unit Hacks . | . . . Scanalyzer . | . . . Garrison Access Hacks . | . . . Unauthorized Hacks . | . . . Terminals . | . . . Fabricators . | . . . Repair Stations . | . . . Recycling Units . | . . . Scanalyzers . | . . . Garrison Access . | . . . Data Cores Recovered . | . . . Used . | . . . Hacking Detections 4 | . 4 . Full Trace Events . | . . . Feedback Events . | . . . Feedback Blocked . | . . . Robot Schematics Acquired . | . . . Robots Built . | . . . Authchips . | . . . Time . | . . . Total Robot Build Rating . | . . . Part Schematics Acquired . | . . . Parts Built . | . . . Authchips . | . . . Time . | . . . Total Part Build Rating . | . . . Part Studies Acquired . | . . . Parts Repaired . | . . . Time . | . . . Parts Recycled . | . . . Recycled Matter . | . . . Retrieved Matter . | . . . Retrieved Components . | . . . Parts Scanalyzed . | . . . Part Schematics Acquired . | . . . Parts Damaged . | . . . Bothacking | -11 -10 -10 ------------ Run | Yrd Mat Sub Used RIF Installer . | . . . Robots Hacked . | . . . Non-combat . | . . . Combat . | . . . Robot Hacks Applied . | . . . Relay Couplers Released . | . . . Fabnet Peak Effective % . | . . . Robots Rewired . | . . . Allies Hacked . | . . . Hacks Repelled . | . . . Allies | -11 -10 -10 -------- Run | Yrd Mat Sub Total Allies . | . . . Largest Group . | . . . Highest-Rated Group . | . . . Highest-Rated Ally . | . . . Total Orders . | . . . Ally Attacks . | . . . Total Damage . | . . . Kills . | . . . Allies Corrupted . | . . . Allies Melted . | . . . Intel | -11 -10 -10 ------- Run | Yrd Mat Sub Active Infowar (turns) . | . . . Robot Analysis Total . | . . . Derelict Logs Recovered 1 | . . 1 Drone Launches . | . . . Drone Recoveries . | . . . Exploration | -11 -10 -10 ------------- Run | Yrd Mat Sub Turns Passed 2094 | 12 1376 706 Spaces Moved 766 | 5 571 190 Core . | . . . Treads 743 | 5 571 167 Legs . | . . . Wheels 23 | . . 23 Hover . | . . . Flight . | . . . Fastest Speed 160 | 160 160 215 Average Speed 229 | 160 203 308 Slowest Speed 480 | 160 320 480 Overloaded Moves . | . . . Propulsion Burnouts . | . . . Robots Hopped . | . . . Potential Cave-ins . | . . . Cave-ins Triggered . | . . . Exploration Rate (%) 37 | 2 92 17 Regions Visited 2 Branch Regions 1 Pre-discovered Areas . | . . . Known Exits Taken . | . . . Unknown Exits Taken 2 | 1 1 . Scrap Searched . | . . . Spaces Dug . | . . . Terrain Destroyed 21 | . 18 3 Melee . | . . . Projectile . | . . . AOE 21 | . 18 3 Terrain Rammed . | . . . Walls Destroyed . | . . . Machines Disabled . | . . . Actions | -11 -10 -10 --------- Run | Yrd Mat Sub Total 991 | 10 714 267 Wait 97 | . 68 29 Move 764 | 4 570 190 Hop . | . . . Pick Up 28 | . 16 12 Fast Attach 1 | . 1 . Attach 9 | . 4 5 Detach . | . . . Swap 12 | 2 6 4 Drop 13 | 4 6 3 Fire 65 | . 41 24 Melee . | . . . Ram . | . . . Kick . | . . . Crush 2 | . 2 . Escape Stasis . | . . . Rewire . | . . . Trap . | . . . Miscellaneous . | . . . Route ------- -11/Scrapyard -10/Materials (discovered 5 exits: [*Mat x3] / [*Min] / *Sub) -10/Subcaves (discovered 1 exit: [*Mat]) History --------- Turn | Location | Event 7 | -11/Scrapyard | Discovered new exit (range 3) 13 | -11/Scrapyard | Entered Materials 218 | -10/Materials | Discovered new exit (range 5) 312 | -10/Materials | Build established: Mutant 461 | -10/Materials | Discovered new exit (range 14) 617 | -10/Materials | Discovered new exit (range 16) 1090 | -10/Materials | Discovered new exit (range 16) 1303 | -10/Materials | Discovered new exit (range 7) 1389 | -10/Materials | Entered Subcaves 1389 | -10/Subcaves | Learned 4 Materials zone layouts 1444 | -10/Subcaves | Discovered new exit (range 12) 1637 | -10/Subcaves | Visited 4L-MR0's lab 1761 | -10/Subcaves | Found Gun Armor 1768 | -10/Subcaves | Found Prototype Device 2023 | -10/Subcaves | Lost 4 parts (3n1w) 2060 | -10/Subcaves | Core integrity fell below 50% 2082 | -10/Subcaves | Core integrity fell below 20% 2095 | -10/Subcaves | Destroyed by ND-H0U(R) with Subdweller Machine Gun Last Messages --------------- 02018_ Acquired Sub. Laser. 02021_ Acquired Sub. Monowheel. 02040_ EM Shotgun destroyed. 02042_ Integrated Corrupted Sub. Laser (+1). 02042_ Complication: FCS attempts to trigger Sub. Laser. 02042_ Complication: Sub. Laser misfires. 02042_ EM Shotgun destroyed. 02059_ 6U-E36(R) suffers critical hit (Destroy). 02063_ Wheel destroyed. 02065_ Critical hit (Destroy). 02065_ Hrd. Light Armor Plating destroyed. 02067_ Ion Engine destroyed. 02071_ 6U-E36(R) destroyed. 02071_ Switching to secondary target: ND-H0U(R). 02074_ Subatomizers dissect the Sub. Optics. 02075_ =UDH,O05IK